bitfinex/quotes_ETHUSD_20260202
["timestamp","ask_amount","ask_price","bid_price","bid_amount"]
[1770010658883,12.99815847,2194.2,2191.9,13.71886765]
[1770010659103,13.10055847,2194.0,2191.9,13.71886765]
[1770010659301,3.2807505,2193.9,2191.5,15.07231517]
[1770010659512,0.957,2193.9,2191.5,16.02931517]
[1770010659677,0.957,2193.9,2191.9,13.71886765]
[1770010662489,0.0011,2193.7,2191.9,13.71886765]
[1770010663508,0.0011,2193.7,2191.8,0.957]
[1770010663509,0.0011,2193.7,2192.1,13.71886765]
[1770010663825,0.0011,2194.4,2193.1,13.71886765]
[1770010664114,0.0011,2194.4,2193.2,1.37188677]
[1770010664678,0.0011,2194.4,2193.2,15.09075442]
[1770010664887,0.957,2195.2,2193.2,15.09075442]
[1770010665408,0.957,2195.2,2193.4,13.71886765]
[1770010665598,0.43566998,2196.5,2193.2,1.37188677]
[1770010665599,13.43382845,2196.5,2194.0,13.71886765]
[1770010665802,2.36328196,2196.4,2194.1,1.37188677]
[1770010665996,13.92235758,2196.3,2194.1,1.37188677]
[1770010666198,12.99815847,2196.3,2194.1,1.37188677]
[1770010666608,1.43908285,2196.4,2194.4,0.2335703]
[1770010666810,0.43566998,2196.5,2194.7,13.71886765]
[1770010667025,12.99815847,2197.4,2194.9,13.71886765]
[1770010667314,12.99815847,2197.4,2195.0,0.957]
[1770010667502,12.99815847,2197.4,2194.9,13.71886765]
[1770010667503,12.81990283,2197.1,2194.9,13.71886765]
[1770010668017,12.81990283,2197.1,2194.9,14.67586765]
[1770010668223,1.28199028,2197.0,2195.0,1.46758677]
[1770010668392,1.28199028,2197.0,2195.0,14.66116283]
[1770010668590,13.77690283,2197.6,2195.0,14.66116283]
[1770010668794,12.92230283,2197.5,2195.0,14.66116283]
[1770010669182,12.92230283,2197.5,2195.0,15.61816283]
[1770010669588,12.92230283,2197.5,2195.0,14.66116283]
[1770010669820,12.81990283,2197.4,2195.0,1.46758677]
[1770010670021,12.92230283,2197.2,2194.8,0.957]
[1770010670391,12.92230283,2197.2,2194.8,14.15057606]
[1770010670588,14.0601366,2197.2,2194.8,13.19357606]
[1770010670809,12.92230283,2197.0,2194.0,13.19357606]
[1770010671008,12.92230283,2197.0,2194.1,0.956]
[1770010671212,12.92230283,2197.0,2194.2,13.19357606]
[1770010671213,12.81990283,2196.8,2194.2,13.19357606]
[1770010671421,0.956,2196.7,2194.2,13.19357606]
[1770010671724,12.92230283,2196.6,2194.2,13.19357606]
[1770010671889,12.92230283,2196.6,2193.5,12.11204273]
[1770010671890,12.81990283,2196.6,2194.3,14.14957606]
[1770010672417,12.92230283,2196.5,2194.3,13.19357606]
[1770010672618,1.29223028,2196.4,2194.3,14.60853367]
[1770010673516,1.29223028,2196.4,2194.3,15.56453367]
[1770010674325,13.11213311,2196.4,2194.3,15.56453367]
[1770010674816,13.06387336,2196.4,2194.3,15.56453367]
[1770010675127,0.24397053,2196.4,2194.5,13.19357606]
[1770010675348,0.0011,2196.5,2194.7,13.19357606]
[1770010675725,13.26817374,2196.5,2193.8,13.19357606]
[1770010675892,13.26817374,2196.5,2192.8,16.67235217]
[1770010675893,12.82100283,2196.5,2194.0,13.19357606]
[1770010676087,12.82100283,2196.5,2194.2,13.19357606]
[1770010676621,12.81990283,2196.4,2194.2,13.19357606]
[1770010676926,12.81990283,2196.2,2194.2,13.19357606]
[1770010677224,12.81990283,2196.2,2193.7,14.14957606]
[1770010677427,12.92230283,2196.1,2193.7,14.14957606]
[1770010677614,12.81990283,2196.1,2193.7,14.14957606]
[1770010677807,1.28199028,2196.0,2193.9,13.19357606]
[1770010678025,12.92340283,2196.5,2193.9,13.19357606]
[1770010678824,12.81990283,2196.4,2193.9,13.19357606]
[1770010679415,12.81990283,2196.4,2194.1,13.19357606]
[1770010680419,0.0011,2196.5,2194.1,13.19357606]
[1770010680729,0.0011,2196.5,2194.7,13.19357606]
[1770010680929,0.0011,2196.5,2194.9,13.19357606]
[1770010681102,0.0011,2196.5,2195.1,13.19357606]
[1770010681300,0.23791569,2197.7,2195.4,13.19357606]
[1770010681528,0.23791569,2197.7,2195.8,13.19357606]
[1770010681529,0.956,2197.7,2195.8,13.19357606]
[1770010681712,12.81990283,2198.5,2196.0,13.19357606]
[1770010681916,12.81990283,2198.3,2196.1,1.17501104]
[1770010682231,12.81990283,2197.9,2195.7,13.19357606]
[1770010682436,12.92230283,2197.5,2194.8,1.34271464]
[1770010682599,12.81990283,2197.3,2194.8,15.4922907]
[1770010682796,12.81990283,2197.3,2195.0,13.19357606]
[1770010683830,12.81990283,2197.1,2195.0,13.19357606]
[1770010684030,1.37759028,2197.0,2195.1,1.41495761]
[1770010684408,14.19749311,2197.0,2194.5,13.19357606]
[1770010684750,12.81990283,2196.8,2194.5,13.19357606]
[1770010684914,12.81990283,2196.7,2194.5,13.19357606]
[1770010685433,12.81990283,2196.2,2194.0,13.19357606]
[1770010685608,0.956,2196.2,2194.0,14.14957606]
[1770010685927,13.77590283,2196.2,2194.1,1.41495761]
[1770010686100,12.81990283,2196.0,2194.1,1.41495761]
[1770010686634,0.956,2196.2,2193.9,13.19357606]
[1770010686954,13.77590283,2196.2,2194.0,0.956]
[1770010687164,13.77590283,2196.2,2194.0,14.14957606]
[1770010687333,0.956,2196.2,2194.2,13.19357606]
[1770010688049,1.37759028,2197.0,2194.8,13.89332954]
[1770010688219,1.37759028,2197.0,2194.6,0.2335703]
[1770010688220,2.33359028,2197.0,2195.0,13.89332954]
[1770010689036,13.54450502,2197.7,2195.2,13.89332954]
[1770010689237,13.54450502,2198.3,2195.8,13.89332954]
[1770010689551,14.50050502,2198.2,2196.0,13.89332954]
[1770010689726,0.0011,2196.7,2196.0,13.89332954]
[1770010689932,14.50050502,2198.2,2196.0,13.89332954]
[1770010690120,1.4500505,2198.1,2196.1,15.37826249]
[1770010690322,1.4500505,2198.1,2195.2,13.89332954]
[1770010690323,0.0011,2197.6,2195.2,13.89332954]
[1770010690640,0.0011,2197.6,2195.8,13.89332954]
[1770010690825,0.0011,2197.6,2195.8,14.84932954]
[1770010691027,0.0011,2197.6,2195.8,0.956]
[1770010691642,13.54560502,2197.6,2195.3,13.89332954]
[1770010691844,13.54450502,2197.4,2195.4,1.38933295]
[1770010692123,0.956,2197.3,2195.3,13.89332954]
[1770010692320,0.0011,2197.6,2195.7,13.89332954]
[1770010692636,0.0011,2197.6,2196.1,13.89332954]
[1770010693939,0.956,2197.5,2195.9,0.956]
[1770010694246,0.956,2197.5,2195.9,14.84932954]
[1770010694448,0.0011,2197.6,2196.1,13.89332954]
[1770010695142,0.0011,2197.6,2195.9,0.956]
[1770010696754,0.0011,2197.6,2195.9,14.84932954]
[1770010697526,0.0011,2197.6,2196.3,13.89332954]
[1770010698625,0.0011,2197.6,2196.1,0.955]
[1770010698862,0.0011,2197.6,2195.8,13.89332954]
[1770010699026,0.0011,2197.6,2195.9,16.23766249]
[1770010699228,0.0011,2197.6,2196.1,13.89332954]
[1770010699469,0.0011,2197.6,2196.3,13.89332954]
[1770010700146,0.0011,2197.6,2196.5,13.89332954]
[1770010701066,1.39502213,2199.1,2196.5,1.13816899]
[1770010701366,0.83771897,2200.5,2199.7,4.19789784]
[1770010701663,0.1232353,2200.5,2199.1,0.23783291]
[1770010702269,14.62274032,2200.5,2199.1,0.23783291]
[1770010702470,0.1024,2200.1,2198.0,0.955]
[1770010702781,13.64690502,2200.1,2198.0,0.955]
[1770010702944,14.65765597,2200.1,2198.0,0.955]
[1770010703377,13.54450502,2199.8,2197.4,13.89332954]
[1770010703587,13.54450502,2199.2,2196.9,13.89332954]
[1770010703766,15.85395552,2199.1,2197.0,1.38933295]
[1770010704069,1.3544505,2199.1,2197.0,15.28266249]
[1770010704234,0.955,2199.4,2197.0,15.28266249]
[1770010704434,13.54450502,2200.1,2197.9,13.89332954]
[1770010704641,0.23897462,2200.3,2198.1,14.12689984]
[1770010704840,0.0011,2200.3,2198.1,14.12689984]
[1770010705761,13.64800502,2200.3,2198.2,0.2335703]
[1770010705934,1.51102791,2200.2,2198.2,1.41268998]
[1770010706140,1.51102791,2200.2,2198.3,14.5]
[1770010706835,1.51102791,2200.2,2196.6,1.13811479]
[1770010706836,13.64690502,2200.1,2197.6,13.89332954]
[1770010707266,13.64690502,2200.1,2197.7,14.5]
[1770010707471,13.64690502,2199.9,2197.8,2.52590416]
[1770010707673,13.64690502,2199.9,2197.7,13.89332954]
[1770010708090,13.64690502,2199.9,2197.8,14.5]
[1770010708855,13.64690502,2199.9,2197.7,13.89332954]
[1770010709052,13.64690502,2199.9,2197.8,0.2335703]
[1770010709271,13.54450502,2199.9,2197.9,14.5]
[1770010709597,1.50602983,2199.8,2198.0,1.47335703]
[1770010710094,0.1024,2199.7,2197.7,13.89332954]
[1770010710301,14.49950502,2199.6,2197.2,13.89332954]
[1770010710466,14.49950502,2199.6,2197.2,14.84832954]
[1770010710806,13.54450502,2199.2,2197.2,0.955]
[1770010710962,14.89895552,2199.1,2197.2,0.955]
[1770010711503,13.64690502,2199.0,2196.7,13.89332954]
[1770010711996,13.64690502,2199.0,2196.8,14.5]
[1770010712159,13.94112702,2199.6,2196.8,14.5]
[1770010712160,13.54450502,2200.1,2197.2,13.89332954]
[1770010712356,15.63581947,2200.1,2197.4,14.12689984]
[1770010712561,13.54450502,2199.9,2197.4,14.12689984]
[1770010712791,13.54450502,2199.9,2197.5,14.5]
[1770010713104,0.955,2200.1,2197.6,14.12689984]
[1770010713800,0.955,2200.1,2198.0,14.12689984]
[1770010713966,0.24660279,2200.0,2198.1,16.26101952]
[1770010714591,0.24660279,2200.0,2198.2,28.62689984]
[1770010714995,0.24660279,2200.0,2198.3,0.2335703]
[1770010715405,0.24660279,2200.0,2198.2,13.89332954]
[1770010715707,0.24660279,2200.0,2198.3,14.5]
[1770010716012,0.24660279,2200.0,2198.3,16.186769]
[1770010716507,0.24660279,2200.0,2198.4,0.2335703]
[1770010717233,0.24660279,2200.0,2198.4,14.12689984]
[1770010717387,0.9561,2200.3,2198.4,14.12689984]
[1770010718203,13.76619682,2200.3,2198.3,16.186769]
[1770010718417,0.9561,2200.3,2198.1,13.46203741]
[1770010718711,12.91249682,2200.2,2198.1,13.46203741]
[1770010718881,0.1024,2200.0,2197.8,0.001]
[1770010719080,2.09231157,2200.3,2197.8,0.001]
[1770010719081,12.81009682,2199.7,2197.8,0.001]
[1770010719980,12.81009682,2199.7,2197.9,0.2335703]
[1770010720181,1.28100968,2199.6,2197.9,1.60323107]
[1770010720384,1.28100968,2199.6,2197.9,1.36966077]
[1770010720586,12.91249682,2199.5,2197.8,0.001]
[1770010720791,12.91249682,2199.5,2197.5,0.001]
[1770010720792,12.81009682,2198.9,2197.5,0.001]
[1770010720977,13.76409682,2198.8,2197.5,0.001]
[1770010721314,12.81009682,2198.6,2197.5,0.001]
[1770010721509,0.954,2198.8,2196.5,14.5]
[1770010721510,12.91249682,2198.5,2196.5,14.5]
[1770010721823,1.29124968,2198.4,2196.6,2.03744315]
[1770010722404,14.1013465,2198.4,2196.6,2.03744315]
[1770010723611,12.91249682,2198.3,2196.3,14.41603741]
[1770010723813,12.91249682,2198.3,2196.3,0.954]
[1770010724206,12.91249682,2198.3,2195.8,13.46203741]
[1770010724618,12.81009682,2197.8,2195.9,14.5]
[1770010724925,13.76509682,2197.7,2195.9,14.5]
[1770010725098,12.91249682,2197.6,2195.7,0.955]
[1770010725416,12.91249682,2197.4,2195.3,13.46203741]
[1770010725616,12.81009682,2197.4,2195.5,0.2335703]
[1770010725816,1.38674968,2197.5,2195.5,13.69560771]
[1770010726021,0.955,2197.7,2195.5,13.69560771]
[1770010726421,12.81009682,2197.9,2195.5,13.69560771]
[1770010726619,12.81009682,2197.9,2195.1,0.955]
[1770010726620,0.955,2197.8,2195.8,13.46203741]
[1770010726932,13.76509682,2197.8,2195.8,13.46203741]
[1770010727236,13.96210636,2197.7,2195.2,13.39800806]
[1770010727437,15.33861604,2197.7,2195.3,15.93530081]
[1770010729108,15.33861604,2197.7,2195.3,29.33330887]
[1770010729308,15.33861604,2197.7,2195.4,13.39800806]
[1770010729608,15.33861604,2197.7,2195.5,13.63157836]
[1770010729938,2.42848482,2198.4,2195.3,15.93530081]
[1770010729939,0.955,2197.9,2195.7,13.63157836]
[1770010730112,0.955,2197.9,2195.6,1.36315784]
[1770010730113,0.955,2197.9,2196.1,13.39800806]
[1770010730312,14.81470636,2197.9,2195.8,0.955]
[1770010730905,13.96210636,2197.8,2195.8,0.955]
[1770010731216,13.85970636,2197.8,2195.8,0.955]
[1770010731421,1.48147064,2197.7,2195.8,0.955]
[1770010731809,1.48147064,2197.7,2195.8,14.35300806]
[1770010732145,13.85970636,2198.3,2195.9,13.63157836]
[1770010732438,14.81470636,2198.1,2195.9,13.63157836]
[1770010732636,14.81470636,2198.1,2196.0,14.5]
[1770010733304,13.96210636,2198.0,2196.0,14.5]
[1770010733532,13.96210636,2198.0,2195.9,13.39800806]
[1770010733733,1.49171064,2197.9,2196.0,1.43530081]
[1770010734347,1.49171064,2197.9,2196.0,14.83330887]
[1770010734813,1.49171064,2197.9,2196.1,13.63157836]
[1770010735010,0.1024,2198.4,2196.1,13.63157836]
[1770010735327,0.955,2198.3,2196.1,13.63157836]
[1770010737358,14.81470636,2198.3,2196.1,13.39800806]
[1770010737515,1.48147064,2198.2,2196.2,15.83633895]
[1770010738355,1.48147064,2198.2,2196.3,13.63157836]
[1770010738647,1.48147064,2198.2,2196.3,13.39800806]
[1770010739244,15.341177,2198.2,2196.2,2.43833089]
[1770010739448,15.48932406,2198.1,2196.2,0.955]
[1770010739950,0.1024,2198.0,2196.2,0.955]
[1770010740318,13.96210636,2198.0,2195.8,13.39800806]
[1770010740535,13.85970636,2198.0,2196.0,13.39800806]
[1770010740749,1.6296177,2198.1,2196.4,13.39800806]
[1770010740958,12.03504688,2199.2,2196.7,13.63157836]
[1770010740959,13.85970636,2199.2,2196.7,13.63157836]
[1770010741119,0.955,2198.8,2196.7,13.63157836]
[1770010741554,13.85970636,2199.7,2197.1,13.39800806]
[1770010741858,0.955,2199.6,2197.5,13.39800806]
[1770010742149,14.81470636,2199.6,2197.6,1.35004081]
[1770010742355,13.85970636,2199.0,2196.9,0.955]
[1770010742663,13.85970636,2198.8,2196.5,1.33980081]
[1770010742825,13.96210636,2198.5,2196.1,14.35300806]
[1770010743219,1.77443077,2199.4,2196.1,14.35300806]
[1770010743220,13.85970636,2199.0,2196.7,13.39800806]
[1770010743428,0.955,2198.9,2197.1,13.39800806]
[1770010744354,0.955,2198.8,2197.1,13.39800806]
[1770010744556,0.0011,2198.3,2197.1,13.39800806]
[1770010744723,0.0011,2198.3,2197.2,1.33980081]
[1770010745319,0.0011,2198.3,2196.8,0.955]
[1770010745551,0.0011,2198.3,2196.8,14.35300806]
[1770010746074,0.0011,2198.3,2197.0,13.39800806]
[1770010746221,0.0011,2198.3,2196.5,13.39800806]
[1770010746425,13.86080636,2198.3,2196.3,0.955]
[1770010746623,13.86080636,2198.3,2196.0,13.39900806]
[1770010746826,13.85970636,2198.1,2196.1,1.33990081]
[1770010747276,13.85970636,2197.7,2196.0,0.001]
[1770010747431,0.955,2197.6,2196.0,0.001]
[1770010747864,15.245787,2198.2,2196.0,13.19067728]
[1770010748169,15.245787,2198.2,2196.2,13.18967728]
[1770010748170,0.955,2198.1,2196.2,13.18967728]
[1770010748370,15.245787,2198.2,2196.0,0.001]
[1770010748371,1.38608064,2198.2,2196.6,13.18967728]
[1770010748580,1.38608064,2198.2,2196.3,0.955]
[1770010748581,0.0011,2198.3,2196.7,1.32920773]
[1770010748749,13.24833723,2198.3,2196.3,0.955]
[1770010749468,13.24833723,2198.3,2196.1,13.18967728]
[1770010750446,13.24723723,2198.1,2196.0,0.001]
[1770010750645,13.24723723,2197.9,2196.0,0.001]
[1770010751532,0.955,2197.8,2196.0,0.001]
[1770010751838,1.42022372,2197.7,2196.0,0.001]
[1770010752034,1.42022372,2197.7,2196.0,13.19067728]
[1770010752865,1.42022372,2197.7,2196.1,13.42324758]
[1770010753068,0.955,2197.8,2196.0,0.001]
[1770010753253,14.20223723,2197.8,2196.0,0.001]
[1770010753646,13.24723723,2197.6,2196.0,0.001]
[1770010755563,13.24723723,2197.4,2196.0,0.001]
[1770010755869,13.24723723,2197.9,2196.0,0.001]
[1770010756071,2.55875513,2197.8,2196.0,0.001]
[1770010756244,15.80599236,2197.8,2196.0,0.001]
[1770010757047,13.24723723,2197.6,2196.0,0.001]
[1770010757371,13.24723723,2197.4,2196.0,0.001]
[1770010757679,1.41787386,2197.3,2196.0,0.001]
[1770010757990,14.66511109,2197.3,2196.0,0.001]
[1770010758635,14.66511109,2197.3,2196.2,0.001]
[1770010758840,14.66511109,2197.3,2196.0,0.001]
[1770010759039,13.24723723,2197.1,2195.5,0.001]
[1770010759281,2.37283149,2197.0,2195.5,0.001]
[1770010759451,0.955,2197.0,2195.5,0.001]
[1770010760777,0.955,2196.9,2195.5,0.001]
[1770010761178,1.41787386,2197.3,2195.5,13.19067728]
[1770010761379,0.955,2197.4,2195.5,13.19067728]
[1770010761545,0.955,2197.4,2195.7,13.18967728]
[1770010762693,1.60375513,2197.8,2196.1,13.18967728]
[1770010762891,0.0011,2197.9,2196.1,13.18967728]
[1770010764410,13.24833723,2197.9,2195.6,13.18967728]
[1770010764590,13.24833723,2197.9,2196.0,13.18967728]
[1770010766293,13.24833723,2197.9,2196.0,13.13967728]
[1770010766492,1.32483372,2197.8,2196.2,13.18967728]
[1770010766694,0.0011,2197.9,2196.2,13.18967728]
[1770010767069,0.0011,2197.9,2196.6,13.18967728]
[1770010767797,0.0011,2197.9,2196.3,0.955]
[1770010767798,0.0011,2198.1,2196.7,13.42324758]
[1770010768095,0.0011,2198.3,2196.9,0.2335703]
[1770010768395,1.1900197,2199.4,2197.4,13.18967728]
[1770010768613,1.1900197,2199.4,2197.7,13.18967728]
[1770010768766,1.1900197,2199.4,2197.9,13.18967728]
[1770010769384,0.0011,2199.8,2197.9,13.18967728]
[1770010770132,0.0011,2199.8,2198.3,13.18967728]
[1770010770405,0.0011,2199.8,2198.0,0.1024]
[1770010770406,0.0011,2199.8,2198.5,13.18967728]
[1770010770568,0.0011,2199.8,2198.6,14.60414501]
[1770010771914,0.0011,2199.8,2198.8,13.18967728]
[1770010772073,0.0011,2200.0,2198.8,13.18967728]
[1770010772399,0.0011,2200.3,2199.2,13.18967728]
[1770010772600,0.1243353,2200.5,2199.4,13.18967728]
[1770010772904,0.1243353,2200.5,2199.5,14.44684415]
[1770010773208,0.44118701,2201.2,2199.5,14.44684415]
[1770010773515,0.44118701,2201.2,2199.6,13.42324758]
[1770010773718,6.41622192,2202.8,2199.5,1.25716687]
[1770010773719,1.19251798,2202.1,2199.7,13.18967728]
[1770010773877,13.24723723,2201.7,2199.7,13.18967728]
[1770010774489,13.24723723,2201.3,2199.5,1.25716687]
[1770010774699,13.24723723,2201.3,2199.5,14.44684415]
[1770010775005,0.955,2201.0,2199.3,14.9743]
[1770010775322,14.20223723,2201.0,2199.3,0.955]
[1770010775678,13.24723723,2201.0,2199.3,0.955]
[1770010775878,14.20223723,2201.0,2199.3,0.955]
[1770010776206,13.24723723,2200.8,2198.4,14.0193]
[1770010776419,13.24723723,2200.6,2198.4,14.0193]
[1770010776622,1.33496372,2200.7,2198.8,13.18967728]
[1770010776907,0.955,2201.0,2199.0,13.18967728]
[1770010777208,0.955,2201.0,2199.1,0.2335703]
[1770010777409,0.955,2201.0,2199.2,13.18967728]
[1770010777620,13.24833723,2201.1,2198.9,0.955]
[1770010777621,0.0011,2201.1,2199.5,13.62288263]
[1770010777922,0.0011,2201.1,2199.6,0.954]
[1770010778078,0.0011,2201.1,2199.7,1.43433123]
[1770010778780,0.0011,2201.1,2199.7,14.82364356]
[1770010779174,0.0011,2201.1,2199.7,1.43433123]
[1770010779401,0.0011,2201.1,2199.6,0.954]
[1770010779604,13.88032772,2201.0,2199.2,14.0193]
[1770010779793,13.88032772,2201.0,2199.2,27.40861233]
[1770010779794,0.954,2201.0,2199.2,27.40861233]
[1770010779981,13.88032772,2201.0,2199.2,14.0193]
[1770010780187,13.88032772,2201.0,2199.1,14.34331233]
[1770010780388,1.38814277,2200.9,2199.2,1.43433123]
[1770010781203,1.38814277,2200.9,2199.2,14.82364356]
[1770010781495,0.0011,2201.1,2199.4,13.38931233]
[1770010782314,0.0011,2201.1,2199.7,13.62288263]
[1770010782482,0.0011,2201.4,2200.0,13.38931233]
[1770010782884,0.0011,2201.4,2199.8,0.954]
[1770010782885,0.0011,2201.4,2200.4,13.38931233]
[1770010783182,0.0011,2202.0,2200.6,13.62288263]
[1770010783385,0.0011,2202.0,2200.8,13.62288263]
[1770010783609,12.92632772,2203.1,2200.8,13.62288263]
[1770010784115,0.954,2203.2,2200.8,13.62288263]
[1770010784286,0.23736111,2203.8,2200.7,0.1024]
[1770010784287,0.23736111,2203.8,2201.2,13.38931233]
[1770010784482,13.37755402,2204.2,2201.4,13.38931233]
[1770010784694,13.37755402,2204.2,2201.7,13.62288263]
[1770010784898,12.92632772,2204.1,2201.7,13.38931233]
[1770010785318,0.4512263,2204.2,2202.2,13.38931233]
[1770010785559,0.4512263,2204.2,2202.1,0.1024]
[1770010785560,0.4512263,2204.2,2202.3,14.57688263]
[1770010785822,0.4512263,2204.2,2202.5,0.2335703]
[1770010786004,0.4512263,2204.2,2202.5,13.62288263]
[1770010786218,0.4512263,2204.2,2202.9,13.62288263]
[1770010786521,0.0011,2203.6,2203.0,0.954]
[1770010786882,0.4512263,2204.2,2203.0,0.954]
[1770010787189,0.4512263,2204.2,2203.0,2.38833123]
[1770010787411,0.4512263,2204.2,2203.0,0.954]
[1770010787591,0.4512263,2204.2,2202.8,14.0193]
[1770010787931,13.61528885,2204.2,2202.8,14.0193]
[1770010788100,13.61528885,2204.2,2202.4,0.954]
[1770010788906,0.4512263,2204.2,2202.4,14.38718417]
[1770010789214,0.4512263,2204.2,2202.7,0.2335703]
[1770010789385,0.4512263,2204.2,2202.6,13.43318417]
[1770010789587,0.4512263,2204.2,2202.7,13.66675447]
[1770010789790,0.4512263,2204.2,2203.0,13.43318417]
[1770010790115,0.4512263,2204.2,2203.1,0.953]
[1770010790417,0.4512263,2204.2,2203.0,0.953]
[1770010790806,0.4512263,2204.2,2202.7,13.43318417]
[1770010791012,0.4512263,2204.2,2202.5,1.43871842]
[1770010791188,0.4512263,2204.2,2202.4,0.953]
[1770010792219,13.61528885,2204.2,2202.4,0.953]
[1770010792713,13.61528885,2204.2,2202.5,0.2335703]
[1770010792902,0.4512263,2204.2,2202.4,0.953]
[1770010793915,13.61528885,2204.2,2202.4,0.953]
[1770010794219,14.52559144,2204.1,2201.9,14.38618417]
[1770010794420,15.47859144,2204.1,2201.9,14.38618417]
[1770010794716,15.47859144,2204.1,2202.0,13.66675447]
[1770010794916,2.31452889,2204.1,2202.0,13.66675447]
[1770010795122,0.953,2204.1,2202.2,13.66675447]
[1770010795493,13.16406255,2203.7,2202.0,14.0193]
[1770010796036,0.1024,2203.6,2202.0,14.0193]
[1770010796238,13.16406255,2203.5,2201.1,0.953]
[1770010796415,1.31640626,2203.4,2201.3,13.43318417]
[1770010796719,14.48046881,2203.4,2201.3,13.43318417]
[1770010796908,13.16406255,2203.2,2201.3,13.43318417]
[1770010797110,13.16406255,2203.2,2201.1,0.953]
[1770010797819,13.16406255,2203.2,2201.1,14.38618417]
[1770010798021,1.32664626,2203.1,2201.2,1.67218872]
[1770010798222,0.953,2203.0,2201.2,1.43861842]
[1770010798424,14.49070881,2203.1,2201.2,1.43861842]
[1770010798614,14.49070881,2203.1,2201.1,0.953]
[1770010799112,14.49070881,2203.1,2201.1,14.38618417]
[1770010799299,13.26646255,2203.0,2201.1,14.38618417]
[1770010799503,13.26646255,2203.0,2201.1,0.953]
[1770010799703,0.953,2202.9,2202.0,0.001]
[1770010799922,1.41170626,2202.8,2202.0,0.001]
[1770010800722,0.51852942,2204.0,2202.0,0.001]
[1770010800723,13.16516255,2204.0,2202.0,0.001]
[1770010800925,0.953,2203.6,2202.0,0.001]
[1770010801329,0.0011,2204.0,2202.1,0.2335703]
[1770010801528,0.0011,2204.0,2202.3,0.2335703]
[1770010801729,1.36284889,2204.0,2202.3,1.36667545]
[1770010802133,13.16406255,2203.8,2202.0,0.001]
[1770010802732,13.16406255,2203.6,2202.0,0.001]
[1770010802935,13.16406255,2203.4,2202.0,0.001]
[1770010803233,13.26646255,2203.1,2200.9,14.0193]
[1770010803401,9.32961684,2203.9,2200.7,13.43318417]
[1770010803402,1.36284889,2204.0,2201.3,0.2335703]
[1770010803696,13.16516255,2204.0,2201.6,13.43318417]
[1770010803905,13.16406255,2203.8,2201.6,13.43318417]
[1770010804100,0.953,2203.7,2201.7,13.66675447]
[1770010804537,14.11706255,2203.7,2201.7,13.43318417]
[1770010804700,14.11706255,2203.7,2201.5,0.953]
[1770010804701,0.953,2203.7,2201.9,13.43318417]
[1770010804907,13.26646255,2203.6,2201.5,0.953]
[1770010805107,0.953,2203.7,2201.6,13.66675447]
[1770010805301,14.11706255,2203.7,2201.6,13.43318417]
[1770010805508,13.26646255,2203.6,2201.5,0.953]
[1770010805928,13.26646255,2203.6,2201.6,0.2335703]
[1770010806138,2.27964626,2203.5,2201.6,13.66675447]
[1770010806456,15.44370881,2203.5,2201.6,13.43318417]
[1770010806805,14.49070881,2203.5,2201.6,13.43318417]
[1770010807030,2.27964626,2203.5,2201.7,13.66675447]
[1770010807218,0.953,2203.5,2201.7,13.66675447]
[1770010809218,0.953,2203.5,2201.8,0.2335703]
[1770010809544,0.0011,2204.0,2202.5,0.2335703]
[1770010809838,0.0011,2204.0,2202.0,13.47282945]
[1770010810007,0.0011,2204.0,2202.1,13.70639975]
[1770010810345,13.36009264,2203.3,2201.5,14.0193]
[1770010810516,0.1024,2203.0,2201.5,14.0193]
[1770010810917,13.46249264,2203.0,2201.5,14.0193]
[1770010811229,13.46249264,2203.0,2199.4,2.26056463]
[1770010811230,14.50347267,2202.8,2200.1,14.0193]
[1770010811411,13.46249264,2201.9,2200.1,14.0193]
[1770010811620,13.36009264,2201.7,2200.1,14.0193]
[1770010812140,13.46249264,2201.6,2199.4,0.953]
[1770010812330,13.46249264,2201.6,2199.4,14.42582945]
[1770010813241,13.46249264,2201.6,2199.4,0.953]
[1770010813621,13.36009264,2201.6,2199.4,0.953]
[1770010813939,2.28900926,2201.5,2199.6,0.2335703]
[1770010814138,15.6491019,2201.5,2199.5,14.9154124]
[1770010814340,15.6491019,2201.5,2199.5,1.44258295]
[1770010814341,13.46249264,2201.4,2199.5,1.44258295]
[1770010814529,13.46249264,2201.4,2199.4,0.953]
[1770010815323,13.46249264,2201.4,2199.4,14.42582945]
[1770010816144,2.28900926,2201.5,2199.4,14.42582945]
[1770010816145,1.33600926,2201.5,2199.7,13.47282945]
[1770010816346,0.953,2201.6,2199.7,13.47282945]
[1770010816649,0.953,2201.6,2199.9,13.47282945]
[1770010817646,0.953,2201.6,2200.0,0.2335703]
[1770010817839,0.953,2201.6,2200.1,14.42582945]
[1770010818169,0.953,2202.1,2200.2,13.70639975]
[1770010818345,0.953,2202.1,2200.4,13.70639975]
[1770010818548,13.36009264,2202.9,2200.4,13.70639975]
[1770010818751,0.953,2202.8,2200.4,13.70639975]
[1770010818948,14.31309264,2202.8,2200.4,13.70639975]
[1770010819258,13.46249264,2202.7,2200.3,1.46593998]
[1770010819549,14.8938019,2202.7,2200.1,0.953]
[1770010819949,13.46249264,2202.5,2200.1,0.953]
[1770010820151,13.46249264,2202.5,2200.2,13.70639975]
[1770010820319,13.36009264,2202.5,2200.2,13.70639975]
[1770010820521,2.39140926,2202.4,2200.4,13.47282945]
[1770010820730,15.7515019,2202.4,2200.3,1.46593998]
[1770010821059,15.7515019,2202.4,2200.1,14.42582945]
[1770010821344,15.7515019,2202.4,2200.2,0.2335703]
[1770010821732,15.7515019,2202.4,2200.2,13.70639975]
[1770010822448,15.7515019,2202.4,2200.3,0.2335703]
[1770010822743,0.1024,2202.2,2200.3,13.70639975]
[1770010822929,1.68779019,2202.2,2200.4,1.37063998]
[1770010823132,1.68779019,2202.2,2200.5,0.2335703]
[1770010824070,1.58539019,2202.2,2200.5,13.70639975]
[1770010824361,0.53832078,2203.3,2200.9,13.70639975]
[1770010824362,0.0011,2203.3,2200.9,13.70639975]
[1770010824529,0.953,2203.2,2201.5,13.47282945]
[1770010824717,0.953,2203.2,2201.6,15.7731124]
[1770010824920,14.31309264,2203.2,2201.1,13.47282945]
[1770010825146,13.46249264,2203.1,2201.1,13.47282945]
[1770010825924,0.0011,2202.2,2200.8,0.953]
[1770010826451,0.0011,2202.2,2200.9,14.5]
[1770010826651,0.0011,2202.2,2200.8,0.953]
[1770010827024,0.0011,2202.2,2200.9,0.2335703]
[1770010827223,0.0011,2202.2,2201.0,27.97282945]